bitfinex/quotes_ETHUSD_20251206
["timestamp","ask_amount","ask_price","bid_price","bid_amount"]
[1765015827146,0.4974,3030.0,3029.9,3.30043895]
[1765015827543,0.9669,3030.0,3029.9,3.30043895]
[1765015829167,0.9669,3030.0,3029.8,3.30150646]
[1765015829372,0.9622,3029.9,3029.8,3.30150646]
[1765015832271,0.9622,3029.9,3029.8,0.001]
[1765015832475,0.9622,3029.9,3029.8,0.522]
[1765015832674,0.9622,3029.9,3029.8,0.001]
[1765015833585,0.9622,3029.9,3029.8,3.30154789]
[1765015836766,0.002,3030.0,3029.8,3.62304789]
[1765015837097,0.002,3030.0,3029.9,3.30043895]
[1765015837903,0.4994,3030.0,3029.9,3.30043895]
[1765015847023,0.9688,3030.0,3029.9,3.30043895]
[1765015848020,0.9688,3030.0,3029.8,3.30154789]
[1765015848193,0.4733,3029.9,3029.8,3.30154789]
[1765015848386,0.9427,3029.9,3029.8,3.30154789]
[1765015850909,0.9665,3029.9,3029.8,3.30154789]
[1765015852321,0.4733,3029.9,3029.8,3.30154789]
[1765015854634,0.9665,3029.9,3029.8,3.30154789]
[1765015856752,0.4733,3029.9,3029.8,3.30154789]
[1765015859859,0.002,3030.0,3029.8,5.32810169]
[1765015860062,0.002,3030.0,3029.9,0.3215]
[1765015860766,0.002,3030.0,3029.8,10.88921419]
[1765015862830,0.4744,3029.9,3029.8,9.89637915]
[1765015863134,0.9676,3029.9,3029.8,9.89637915]
[1765015863665,0.4744,3029.9,3029.8,9.89637915]
[1765015864263,0.002,3030.0,3029.8,9.89637915]
[1765015865755,0.002,3030.0,3029.9,1.37170188]
[1765015866259,0.002,3030.0,3029.9,2.41879599]
[1765015866464,0.002,3030.0,3029.9,2.74029599]
[1765015866665,0.002,3030.0,3029.9,2.8723966]
[1765015867987,0.002,3030.0,3029.9,5.85133555]
[1765015872290,0.002,3030.0,3029.9,9.69133555]
[1765015873163,0.002,3030.0,3029.9,10.01283555]
[1765015880191,0.002,3030.0,3029.9,9.69133555]
[1765015882632,0.002,3030.0,3029.9,10.21133555]
[1765015884333,0.002,3030.0,3029.9,9.69133555]
[1765015884483,0.002,3030.0,3029.9,16.09148809]
[1765015885914,0.499,3030.0,3029.9,15.76998809]
[1765015886117,0.984,3030.0,3029.9,15.76998809]
[1765015886319,0.984,3030.0,3029.9,15.24998809]
[1765015886617,0.984,3030.0,3029.9,15.76998809]
[1765015887213,0.984,3030.0,3029.9,11.92998809]
[1765015890949,0.984,3030.0,3029.9,11.71342078]
[1765015893650,0.499,3030.0,3029.9,11.71342078]
[1765015895327,0.002,3030.0,3029.9,12.03492078]
[1765015896178,0.002,3030.0,3029.9,12.35642078]
[1765015896680,0.002,3030.0,3029.9,12.03492078]
[1765015896868,0.002,3030.0,3029.9,14.3356363]
[1765015898978,0.002,3030.0,3029.9,18.1756363]
[1765015903587,0.002,3030.0,3029.9,24.05578884]
[1765015905868,0.002,3030.0,3029.9,23.73428884]
[1765015906080,0.002,3030.4,3030.3,0.72559411]
[1765015906282,0.002,3030.4,3030.3,8.60238122]
[1765015906680,0.002,3030.4,3030.3,8.73445828]
[1765015908003,0.002,3030.4,3030.3,17.91461412]
[1765015908222,0.002,3030.4,3030.3,18.23611412]
[1765015908436,0.002,3030.4,3030.3,20.47142791]
[1765015908632,0.002,3030.4,3030.3,20.14992791]
[1765015910957,0.002,3030.4,3030.3,23.98992791]
[1765015918867,0.002,3030.4,3030.3,20.47142791]
[1765015919756,0.002,3030.4,3030.3,20.14992791]
[1765015922750,0.002,3030.4,3030.3,23.98992791]
[1765015930323,0.002,3030.4,3030.3,23.66842791]
[1765015931722,0.002,3030.4,3030.3,23.98992791]
[1765015937584,0.002,3030.7,3030.5,30.0]
[1765015937788,0.002,3030.7,3030.6,29.62995596]
[1765015938013,0.002,3030.7,3030.6,29.9184592]
[1765015938289,0.002,3030.8,3030.7,22.85759711]
[1765015938511,0.002,3030.8,3030.7,28.91698965]
[1765015938827,0.002,3030.8,3030.7,23.03683711]
[1765015939125,0.002,3030.8,3030.7,26.35705005]
[1765015939418,0.002,3030.8,3030.7,5.61431105]
[1765015939625,0.002,3030.8,3030.7,27.93501494]
[1765015939937,0.002,3030.8,3030.7,24.43124927]
[1765015940304,0.002,3030.8,3030.7,29.98990181]
[1765015940630,0.002,3030.8,3030.7,40.39169981]
[1765015940792,0.002,3030.8,3030.7,38.05069881]
[1765015940992,0.002,3030.8,3030.7,40.83906434]
[1765015942405,0.43380726,3031.3,3030.9,16.812119]
[1765015942600,0.43380726,3031.3,3031.2,13.64103376]
[1765015942803,0.43380726,3031.3,3031.2,14.16103376]
[1765015943004,0.1987,3031.9,3031.2,14.16103376]
[1765015943005,0.1987,3031.9,3031.3,1.13109811]
[1765015943329,0.1987,3031.9,3031.4,6.96304665]
[1765015943626,0.1987,3031.9,3031.4,7.16174665]
[1765015944538,0.4696,3031.8,3031.4,10.46055248]
[1765015945816,0.4856,3031.5,3031.4,10.10325248]
[1765015946039,0.9552,3031.5,3031.4,10.62325248]
[1765015946550,0.9552,3031.5,3031.4,10.61806497]
[1765015949325,0.9552,3031.5,3031.4,12.31683882]
[1765015951254,0.9552,3031.5,3031.4,10.61806497]
[1765015952061,0.4856,3031.5,3031.4,10.61806497]
[1765015952268,0.9552,3031.5,3031.4,10.61806497]
[1765015952450,0.9552,3031.5,3031.4,14.45806497]
[1765015955059,0.9552,3031.5,3031.4,13.93806497]
[1765015955254,0.9552,3031.5,3031.4,14.45806497]
[1765015958469,0.9552,3031.5,3031.4,10.61806497]
[1765015958634,0.9552,3031.5,3031.4,11.77319954]
[1765015962267,0.4856,3031.5,3031.4,11.77319954]
[1765015962873,0.002,3031.5,3031.4,11.77319954]
[1765015963163,0.002,3031.5,3031.4,13.77992517]
[1765015963368,0.002,3031.5,3031.4,14.13722517]
[1765015964372,0.002,3031.5,3031.4,17.97722517]
[1765015966765,0.002,3031.5,3031.4,17.61992517]
[1765015967655,0.002,3031.5,3031.4,18.38272917]
[1765015968266,0.4804,3031.5,3031.4,17.09992517]
[1765015968451,0.958,3031.5,3031.4,17.61992517]
[1765015972248,0.958,3031.5,3031.4,15.61319954]
[1765015981177,0.958,3031.5,3031.4,15.09319954]
[1765015981384,0.958,3031.5,3031.4,4.22309994]
[1765015981684,0.958,3031.5,3031.4,4.02439994]
[1765015981987,0.958,3031.5,3031.3,0.001]
[1765015982192,0.9412,3031.4,3031.3,0.001]
[1765015984577,1.36558665,3031.4,3031.3,0.001]
[1765015989699,4.66439248,3031.4,3031.3,0.001]
[1765015989870,4.66439248,3031.4,3030.9,0.001]
[1765015990070,1.63483457,3031.0,3030.9,0.001]
[1765015990600,2.10463457,3031.0,3030.9,0.001]
[1765015990804,2.43061148,3031.0,3030.9,0.001]
[1765015991381,1.27547691,3031.0,3030.9,0.001]
[1765015993497,0.4797,3031.0,3030.9,0.001]
[1765015993798,0.4698,3031.4,3031.0,6.59848234]
[1765015993972,0.4698,3031.4,3031.0,7.11848234]
[1765015994175,0.4797,3031.1,3031.0,3.81924117]
[1765015994609,0.9495,3031.1,3031.0,3.81924117]
[1765016000413,0.9495,3031.1,3031.0,3.82024117]
[1765016000715,0.4797,3031.1,3031.0,3.82024117]
[1765016001309,0.002,3031.4,3031.0,8.77633872]
[1765016001506,0.4698,3031.3,3031.0,8.77633872]
[1765016002187,0.4797,3031.1,3031.0,5.11979755]
[1765016002386,0.4797,3031.1,3031.0,3.82024117]
[1765016002710,0.9495,3031.1,3031.0,3.82024117]
[1765016003811,0.4718,3031.4,3031.0,7.11948234]
[1765016004110,0.4797,3031.1,3031.0,3.82024117]
[1765016004481,0.4718,3031.4,3031.0,7.11948234]
[1765016004688,0.4718,3031.4,3031.0,9.25750611]
[1765016005086,0.4718,3031.4,3031.0,8.90020611]
[1765016006394,0.4718,3031.4,3031.2,5.87691124]
[1765016006818,0.4718,3031.4,3031.3,3.29891465]
[1765016007020,0.002,3031.4,3031.3,3.29891465]
[1765016007231,0.002,3031.4,3031.3,4.90370671]
[1765016007394,0.9515,3031.4,3031.3,3.29891465]
[1765016008489,0.002,3031.4,3031.3,3.65621465]
[1765016008798,0.002,3031.4,3031.3,4.01351465]
[1765016009010,0.002,3031.4,3031.3,3.65621465]
[1765016009800,0.4817,3031.4,3031.3,3.29891465]
[1765016010001,0.9515,3031.4,3031.3,3.29891465]
[1765016016919,0.4817,3031.4,3031.3,3.29891465]
[1765016025142,0.002,3031.4,3031.3,3.65621465]
[1765016025340,0.002,3031.4,3031.3,4.42794531]
[1765016025538,0.002,3031.4,3031.3,5.58307988]
[1765016027341,0.002,3031.4,3031.3,6.66597399]
[1765016027842,0.002,3031.4,3031.3,6.30867399]
[1765016028041,0.002,3031.4,3031.3,6.66597399]
[1765016032727,0.002,3031.4,3031.3,10.50597399]
[1765016034252,0.002,3031.4,3031.3,10.50697399]
[1765016050934,0.002,3031.4,3031.3,10.14967399]
[1765016052049,0.002,3031.4,3031.3,10.50697399]
[1765016052233,0.002,3031.4,3031.3,10.14967399]
[1765016052430,0.002,3031.4,3031.3,10.50697399]
[1765016052635,0.002,3031.4,3031.3,10.14967399]
[1765016053136,0.002,3031.4,3031.3,10.50697399]
[1765016054639,0.002,3031.4,3031.3,10.14967399]
[1765016059272,0.002,3031.4,3031.3,10.2817044]
[1765016060360,0.4734,3031.4,3031.3,10.4444044]
[1765016060675,0.9721,3031.4,3031.3,10.4444044]
[1765016061374,0.4734,3031.4,3031.3,10.4444044]
[1765016064373,0.002,3031.4,3031.3,10.8017044]
[1765016067978,0.002,3031.4,3031.3,10.4444044]
[1765016067979,0.4734,3031.4,3031.3,10.4444044]
[1765016068175,0.9721,3031.4,3031.3,10.4444044]
[1765016068359,0.9721,3031.4,3031.3,16.3191303]
[1765016069882,0.4734,3031.4,3031.3,16.3191303]
[1765016070352,0.9721,3031.4,3031.3,16.3191303]
[1765016071877,0.4734,3031.4,3031.3,16.3191303]
[1765016075186,0.002,3031.4,3031.3,16.3191303]
[1765016075388,0.002,3031.4,3031.3,16.6764303]
[1765016075586,0.002,3031.4,3031.3,17.0337303]
[1765016076255,0.002,3031.5,3031.4,31.13109811]
[1765016076468,0.002,3031.5,3031.4,35.03386364]
[1765016076888,0.002,3031.5,3031.4,35.16587705]
[1765016077385,0.002,3031.5,3031.4,28.33242788]
[1765016078463,0.002,3031.5,3031.4,28.65682888]
[1765016080164,0.002,3031.5,3031.4,32.49682888]
[1765016080365,0.002,3031.5,3031.4,12.30468288]
[1765016080564,0.002,3031.5,3031.4,32.49682888]
[1765016081866,0.002,3031.6,3031.4,32.49682888]
[1765016082068,0.002,3031.6,3031.5,34.35683621]
[1765016082585,0.002,3031.6,3031.5,34.64122862]
[1765016083673,0.002,3031.8,3031.6,1.13109811]
[1765016083873,0.002,3031.8,3031.7,15.80421877]
[1765016084083,0.002,3031.8,3031.7,15.77123398]
[1765016084281,0.002,3031.8,3031.7,14.30827676]
[1765016084490,0.002,3031.8,3031.7,14.44028495]
[1765016095113,0.002,3031.8,3031.7,18.28028495]
[1765016097315,0.002,3031.8,3031.7,18.68578895]
[1765016112720,0.002,3031.8,3031.7,15.38730955]
[1765016113025,0.002,3031.8,3031.7,18.68578895]
[1765016121304,0.002,3031.8,3031.7,47.14421595]
[1765016121634,0.002,3031.8,3031.7,44.20966795]
[1765016124234,0.002,3031.8,3031.7,44.53354095]
[1765016124429,0.002,3031.8,3031.7,44.33274095]
[1765016124631,0.002,3031.8,3031.7,44.00886795]
[1765016124839,0.002,3031.8,3031.7,43.46886795]
[1765016125429,0.002,3031.8,3031.7,18.68578895]
[1765016125634,0.002,3031.8,3031.7,45.49974895]
[1765016126636,0.002,3031.8,3031.7,45.83225595]
[1765016127338,0.002,3032.2,3032.0,34.06095703]
[1765016127515,0.002,3032.5,3032.2,0.405504]
[1765016127835,0.002,3032.5,3032.4,6.60032001]
[1765016128539,0.002,3032.5,3032.4,7.27652001]
[1765016128709,0.002,3032.5,3032.4,9.54330658]
[1765016130005,0.002,3032.5,3032.4,13.19832455]
[1765016130431,0.002,3032.5,3032.4,13.19267733]
[1765016131231,0.484,3032.8,3032.7,5.86907868]
[1765016131544,0.484,3032.8,3032.7,7.11467279]
[1765016131713,0.9554,3032.8,3032.7,7.82614007]
[1765016131916,0.9554,3032.8,3032.7,8.31014007]
[1765016132522,0.9554,3032.8,3032.7,11.60753183]
[1765016133622,0.9554,3032.8,3032.7,15.44753183]
[1765016135437,0.9574,3032.8,3032.7,15.44753183]
[1765016135922,0.4734,3032.8,3032.7,15.44753183]
[1765016136120,0.9574,3032.8,3032.7,15.44753183]
[1765016136713,0.002,3032.8,3032.7,21.67391051]
[1765016136911,0.002,3032.8,3032.7,40.47430751]
[1765016137139,0.002,3032.8,3032.7,33.46609751]
[1765016137848,0.002,3032.8,3032.7,43.42236451]
[1765016138934,0.4734,3032.8,3032.7,37.75330051]
[1765016139142,0.9242,3032.8,3032.7,37.75330051]
[1765016139338,0.9242,3032.8,3032.7,37.30121651]
[1765016139724,0.9242,3032.8,3032.7,35.75936851]
[1765016140143,0.002,3032.8,3032.7,35.75936851]
[1765016140923,0.002,3032.8,3032.7,36.08545051]
[1765016141525,0.002,3032.8,3032.7,36.44275051]
[1765016141847,0.002,3032.8,3032.7,40.86896751]
[1765016142150,0.002,3032.8,3032.7,41.22626751]
[1765016143051,0.002,3032.8,3032.7,43.72124751]
[1765016144054,0.002,3032.8,3032.7,39.21349751]
[1765016145052,0.002,3032.8,3032.7,42.61349751]
[1765016145560,0.4508,3033.1,3032.8,1.13109811]
[1765016145725,0.4508,3033.1,3033.0,30.97229336]
[1765016146058,0.002,3033.2,3033.0,7.74980736]
[1765016146222,0.4528,3033.2,3033.1,0.52]
[1765016146422,0.4528,3033.2,3033.1,1.24559411]
[1765016146620,0.4974,3033.2,3033.1,1.69839411]
[1765016146819,0.9482,3033.2,3033.1,2.8894714]
[1765016147731,0.9482,3033.2,3033.1,6.1864283]
[1765016151057,0.9482,3033.2,3033.1,5.6664283]
[1765016151258,0.9482,3033.2,3033.1,4.99535101]
[1765016152154,0.9482,3033.2,3033.1,4.47535101]
[1765016152324,0.9482,3033.2,3033.1,4.99535101]
[1765016153024,0.4974,3033.2,3033.1,4.99535101]
[1765016153254,0.002,3033.2,3033.1,4.99535101]
[1765016153453,0.002,3033.2,3033.1,7.80092949]
[1765016153961,0.4825,3033.2,3033.1,7.44362949]
[1765016156568,0.002,3033.2,3033.1,7.44362949]
[1765016157362,0.002,3033.2,3033.1,11.28362949]
[1765016158654,0.002,3033.2,3033.1,11.64092949]
[1765016159271,0.002,3033.2,3033.1,26.46795349]
[1765016160051,0.4825,3033.2,3033.1,23.31503649]
[1765016160252,0.002,3033.2,3033.1,23.86848249]
[1765016160448,0.002,3033.5,3033.1,31.35430029]
[1765016160653,0.002,3033.5,3033.4,11.0464382]
[1765016161053,0.002,3033.5,3033.4,11.5179382]
[1765016161970,0.4825,3033.5,3033.4,11.5179382]
[1765016162374,3.29500701,3034.9,3033.4,11.5179382]
[1765016162375,0.1823,3035.0,3033.5,29.55902211]
[1765016162546,0.4715,3034.3,3034.1,1.15513457]
[1765016162746,0.4715,3034.3,3034.2,4.54135576]
[1765016162961,0.4715,3034.3,3034.2,5.53076088]
[1765016163161,0.4805,3034.3,3034.2,5.53076088]
[1765016163365,0.4715,3034.6,3034.2,9.82469987]
[1765016163571,0.4805,3034.3,3034.2,6.52893822]
[1765016163752,0.4805,3034.3,3034.2,11.40861178]
[1765016163958,0.952,3034.3,3034.2,11.88911178]
[1765016164161,0.4805,3034.3,3034.2,11.88911178]
[1765016164361,0.952,3034.3,3034.2,11.88911178]
[1765016165348,0.4715,3034.8,3034.3,0.72559411]
[1765016165549,0.4715,3034.8,3034.7,7.02421325]
[1765016165749,0.4715,3034.8,3034.7,7.54421325]
[1765016165956,0.952,3034.8,3034.7,8.01571325]
[1765016166852,0.952,3034.8,3034.7,11.31093188]
[1765016167565,0.4805,3034.8,3034.7,10.88139142]
[1765016167765,0.952,3034.8,3034.7,12.4145778]
[1765016169881,0.952,3034.8,3034.7,18.28365648]
[1765016170880,0.4825,3034.8,3034.7,18.28365648]
[1765016171381,0.9549,3034.8,3034.7,12.4145778]
[1765016171951,0.9549,3034.8,3034.7,10.36139142]
[1765016172466,0.9549,3034.8,3034.7,10.88039142]
[1765016172887,0.9549,3034.8,3034.7,0.4715]
[1765016173191,0.9549,3034.8,3034.7,0.52]
[1765016173361,0.9549,3034.8,3034.7,3.81521863]
[1765016174080,0.9549,3034.8,3034.7,0.52]
[1765016175770,0.9549,3034.8,3034.4,0.98940185]
[1765016176000,0.9549,3034.8,3034.3,0.52]
[1765016176001,0.4944,3034.5,3034.3,0.52]
[1765016176187,2.15423913,3034.7,3034.3,3.81565157]
[1765016176492,0.4944,3034.4,3034.1,0.52]
[1765016176659,0.4506,3034.2,3034.1,3.29580344]
[1765016177192,0.923,3034.2,3034.1,3.29580344]
[1765016179565,0.923,3034.2,3034.1,4.28520529]
[1765016180390,0.923,3034.2,3034.1,3.29580344]
[1765016181975,0.923,3034.2,3034.1,3.81580344]
[1765016186376,0.923,3034.2,3034.1,3.29580344]
[1765016189893,0.925,3034.2,3034.1,3.29580344]
[1765016191602,0.002,3034.2,3034.1,6.00638272]
[1765016192410,0.002,3034.2,3034.1,11.87083292]
[1765016193485,0.4964,3034.2,3034.1,11.51353292]
[1765016193691,0.9688,3034.2,3034.1,12.50593292]
[1765016197394,0.9688,3034.2,3034.1,11.51353292]
[1765016197590,0.9688,3034.2,3034.1,10.40584775]
[1765016198007,0.002,3034.2,3034.1,10.40584775]
[1765016198789,0.002,3034.2,3034.1,10.76314775]
[1765016200910,0.002,3034.2,3034.1,10.40584775]
[1765016201308,0.4661,3034.2,3034.1,10.40584775]
[1765016201507,0.9482,3034.2,3034.1,10.40584775]
[1765016201823,0.9482,3034.2,3034.1,4.02139755]
[1765016201993,0.9482,3034.2,3034.1,4.54139755]
[1765016202387,0.9482,3034.2,3034.1,4.02139755]
[1765016203324,0.9482,3034.2,3034.1,0.72559411]
[1765016205525,0.9482,3034.2,3034.1,4.02146438]
[1765016205893,0.9482,3034.2,3034.1,0.72559411]
[1765016207226,0.9482,3034.2,3034.1,4.02146438]
[1765016207819,0.9482,3034.2,3034.1,0.72559411]
[1765016208940,0.9482,3034.2,3033.8,3.29618332]
[1765016208941,0.9482,3034.2,3033.8,3.29611895]
[1765016209128,0.6586,3033.9,3033.8,4.54171306]
[1765016209615,1.1407,3033.9,3033.8,4.02171306]
[1765016209820,1.1407,3033.9,3033.7,3.81627376]
[1765016210038,0.4771,3033.6,3033.5,0.001]
[1765016210244,0.4771,3033.6,3033.5,0.521]
[1765016210455,0.9432,3033.6,3033.5,4.54311627]
[1765016211643,0.9432,3033.6,3033.5,4.02311627]
[1765016211814,0.9432,3033.6,3033.5,4.54311627]
[1765016216419,0.4771,3033.6,3033.5,4.54311627]
[1765016216624,0.4661,3033.8,3033.5,7.83963843]
[1765016217114,0.4771,3033.6,3033.5,4.54311627]
[1765016218650,0.9432,3033.6,3033.5,4.54311627]
[1765016218845,0.4771,3033.6,3033.5,4.54311627]
[1765016219033,0.1945,3033.9,3033.5,8.19693843]
[1765016219234,0.6606,3033.9,3033.5,8.19693843]
[1765016219956,0.4661,3033.8,3033.5,8.19693843]
[1765016220160,0.002,3034.2,3033.5,14.06138863]
[1765016220316,0.4681,3034.2,3033.8,0.3573]
[1765016220512,0.4681,3034.2,3033.6,0.72559411]
[1765016220738,0.4681,3034.2,3033.7,1.70006108]
[1765016221247,0.4681,3034.2,3033.8,6.59239236]
[1765016221445,0.4681,3034.2,3033.9,0.52]
[1765016221849,0.4771,3034.0,3033.9,0.52]
[1765016222153,0.4681,3034.2,3033.9,0.52]
[1765016222363,0.002,3034.2,3034.1,6.2217502]
[1765016222561,0.002,3034.2,3034.1,6.94734431]
[1765016223321,0.002,3034.2,3034.1,10.24321458]
[1765016229030,0.002,3034.2,3034.1,24.63683658]
[1765016229228,0.002,3034.2,3034.1,17.12246358]
[1765016229547,0.002,3034.2,3034.1,20.45924207]
[1765016233073,0.002,3034.2,3034.1,27.75565707]
[1765016234271,0.002,3034.2,3034.1,28.16116107]
[1765016234443,0.002,3034.2,3034.1,32.00116107]
[1765016235164,0.002,3034.2,3034.1,32.02462707]
[1765016236262,0.002,3034.2,3034.1,32.35434807]
[1765016236778,0.002,3034.2,3034.1,18.18279707]
[1765016239581,0.4933,3034.2,3034.1,16.54269307]
[1765016239752,0.4933,3034.2,3034.1,17.06269307]
[1765016239960,0.9659,3034.2,3034.1,14.19201458]
[1765016240156,0.9659,3034.2,3034.1,14.71201458]
[1765016240462,0.9659,3034.2,3034.1,10.87201458]
[1765016241242,0.9659,3034.2,3034.1,10.40591458]
[1765016243176,0.9659,3034.2,3034.1,9.88591458]
[1765016243478,0.9659,3034.2,3034.1,10.40591458]
[1765016245573,0.9659,3034.2,3034.1,4.02146438]
[1765016245886,0.9659,3034.2,3034.1,4.54146438]
[1765016249171,0.002,3034.2,3034.1,4.89876438]
[1765016249373,0.002,3034.2,3034.1,5.36603751]
[1765016249554,0.002,3034.2,3034.1,6.71266432]
[1765016251669,0.002,3034.2,3034.1,6.35536432]
[1765016252488,0.002,3034.2,3034.1,16.05981452]
[1765016254585,0.002,3034.2,3034.1,16.05957954]
[1765016254782,0.002,3034.2,3034.1,15.70227954]
[1765016255578,0.4933,3034.2,3034.1,15.70227954]
[1765016258189,0.002,3034.2,3034.1,15.70227954]
[1765016258576,0.002,3034.2,3034.1,16.05957954]
[1765016261702,0.002,3034.2,3034.1,15.70227954]
[1765016263375,0.002,3034.2,3034.1,16.05957954]
[1765016264997,0.002,3034.2,3034.1,16.41687954]
[1765016267169,0.002,3034.2,3034.1,16.05957954]
[1765016269600,0.002,3034.2,3034.1,12.21957954]
[1765016275092,0.002,3034.2,3034.1,16.05957954]
[1765016281316,0.002,3034.2,3034.1,15.70227954]
[1765016282202,0.002,3034.2,3034.1,16.05957954]
[1765016282518,0.002,3034.2,3034.1,30.47837354]
[1765016282720,0.002,3034.2,3034.1,24.68182654]
[1765016283840,0.9515,3034.2,3034.1,11.34227954]
[1765016284125,0.9515,3034.2,3034.1,10.4056796]
[1765016287196,0.002,3034.2,3034.1,10.7629796]
[1765016287398,0.002,3034.2,3034.1,11.1202796]
[1765016287712,0.002,3034.2,3034.1,11.5855796]
[1765016288411,0.002,3034.2,3034.1,14.10526937]
[1765016289624,0.002,3034.2,3034.1,24.71197937]
[1765016290330,0.002,3034.2,3034.1,23.76077937]
[1765016290504,0.002,3034.2,3034.1,22.36787137]
[1765016290705,0.002,3034.2,3034.1,21.66674237]
[1765016291626,0.002,3034.2,3034.1,14.10526937]
[1765016291930,0.002,3034.2,3034.1,21.30944237]
[1765016292702,0.002,3034.2,3034.1,23.19553037]
[1765016293600,0.002,3034.2,3034.1,22.82834437]
[1765016295035,0.002,3034.2,3034.1,22.88713937]
[1765016295606,0.002,3034.2,3034.1,23.24443937]
[1765016295806,0.002,3034.2,3034.1,21.30249937]
[1765016296035,0.002,3034.2,3034.1,20.81251637]
[1765016296934,0.002,3034.2,3034.1,20.82936337]
[1765016298033,0.002,3034.2,3034.1,20.70680437]
[1765016298734,0.002,3034.2,3034.1,19.94681437]
[1765016298940,0.002,3034.2,3034.1,19.95169837]
[1765016300023,0.002,3034.2,3034.1,19.86900437]
[1765016300427,0.002,3034.2,3034.1,15.95166437]
[1765016300629,0.002,3034.2,3034.1,13.74796937]
[1765016301342,0.002,3034.2,3034.1,13.39066937]
[1765016302636,0.002,3034.2,3034.1,12.87066937]
[1765016302809,0.002,3034.2,3034.1,17.23066937]
[1765016303137,0.002,3034.2,3034.1,20.04047537]
[1765016303741,0.002,3034.2,3034.1,17.23066937]
[1765016303920,0.002,3034.2,3034.1,20.36641037]
[1765016304121,0.002,3034.2,3034.1,23.47677537]
[1765016304725,0.002,3034.2,3034.1,23.83407537]
[1765016305040,0.002,3034.2,3034.1,23.47677537]
[1765016305230,0.002,3034.2,3034.1,29.69296337]
[1765016305412,0.002,3034.2,3034.1,27.02375137]
[1765016305933,0.002,3034.2,3034.1,26.66645137]
[1765016306109,0.002,3034.2,3034.1,26.70070537]
[1765016306613,0.002,3034.2,3034.1,27.05800537]
[1765016307208,0.002,3034.2,3034.1,27.42702837]
[1765016307426,0.002,3034.2,3034.1,26.66767737]
[1765016307926,0.002,3034.2,3034.1,27.02497737]
[1765016308256,0.002,3034.2,3034.1,27.56233437]
[1765016308411,0.002,3034.2,3034.1,27.20503437]
[1765016309147,0.002,3034.2,3034.1,17.58796937]
[1765016309347,0.002,3034.2,3034.1,27.20503437]
[1765016309744,0.002,3034.2,3034.1,26.66503437]
[1765016311316,0.002,3034.2,3034.1,26.28438037]
[1765016311646,0.002,3034.2,3034.1,25.92708037]
[1765016311944,0.002,3034.2,3034.1,26.28438037]
[1765016312242,0.002,3034.2,3034.1,17.58796937]
[1765016312548,0.002,3034.2,3034.1,26.67382737]
[1765016313655,0.002,3034.2,3034.1,17.58796937]
[1765016313845,0.002,3034.2,3034.1,26.67382737]
[1765016314821,0.002,3034.2,3034.1,27.21382737]
[1765016315744,0.002,3034.2,3034.1,27.57112737]
[1765016315949,0.002,3034.2,3034.1,31.45012737]
[1765016316339,0.002,3034.2,3034.1,22.24000215]
[1765016316652,0.002,3034.2,3034.1,28.05383816]
[1765016316851,0.002,3034.2,3034.1,18.34898016]
[1765016317150,0.002,3034.2,3034.1,28.05383816]
[1765016317851,0.002,3034.2,3034.1,18.34898016]
[1765016318042,0.002,3034.2,3034.1,31.49452216]
[1765016318223,0.002,3034.2,3034.1,27.69452216]
[1765016319132,0.002,3034.2,3034.1,27.69781816]
[1765016319652,0.002,3034.2,3034.1,28.05511816]
[1765016320071,0.002,3034.2,3034.1,18.34898016]
[1765016320269,0.002,3034.2,3034.1,31.85511816]
[1765016320452,0.002,3034.2,3034.1,27.69781816]
[1765016321140,0.002,3034.2,3034.1,31.49781816]
[1765016321852,0.002,3034.2,3034.1,27.15452216]
[1765016322171,0.002,3034.2,3034.1,27.69452216]
[1765016322370,0.002,3034.2,3034.1,27.15452216]
[1765016322769,0.9607,3034.2,3034.1,17.63438016]
[1765016323567,0.9607,3034.2,3034.1,21.11358416]
[1765016323777,0.9607,3034.2,3034.1,20.54058416]
[1765016325872,0.9607,3034.2,3034.1,17.63438016]
[1765016326074,0.9607,3034.2,3034.1,20.51658416]
[1765016326578,0.002,3034.2,3034.1,20.51658416]
[1765016326776,0.002,3034.2,3034.1,20.87388416]
[1765016326954,0.002,3034.2,3034.1,31.77859116]
[1765016330274,0.002,3034.2,3034.1,17.99168016]
[1765016330477,0.002,3034.2,3034.1,31.77859116]
[1765016330972,0.002,3034.2,3034.1,21.59297016]
[1765016331206,0.4997,3034.2,3034.1,21.23567016]
[1765016331379,0.4997,3034.2,3034.1,27.30066416]
[1765016332759,0.002,3034.2,3034.1,27.30066416]
[1765016332958,0.002,3034.2,3034.1,27.65796416]
[1765016333458,0.002,3034.2,3034.1,28.01856016]
[1765016334483,0.002,3034.2,3034.1,31.01059016]
[1765016335185,0.002,3034.2,3034.1,30.76059016]
[1765016335387,0.002,3034.2,3034.1,31.09881616]
[1765016336386,0.002,3034.6,3034.2,1.13109811]
[1765016336590,0.002,3034.6,3034.5,7.01755658]
[1765016336885,0.002,3034.6,3034.5,8.26215069]
[1765016337189,0.988,3034.6,3034.5,8.75245069]
[1765016337376,0.4997,3034.6,3034.5,12.45339051]
[1765016337572,0.4997,3034.6,3034.5,14.39320517]
[1765016337775,0.4997,3034.6,3034.5,24.90925317]
[1765016338860,0.4997,3034.6,3034.5,25.16509817]
[1765016339087,0.4997,3034.6,3034.5,23.80608217]
[1765016339589,0.002,3034.6,3034.5,24.16338217]
[1765016339889,0.002,3034.6,3034.5,24.52838717]
[1765016340183,0.002,3034.6,3034.5,24.88568717]
[1765016340790,0.002,3034.6,3034.5,26.08962117]
[1765016341286,0.002,3034.6,3034.5,25.70942117]
[1765016341480,0.002,3034.6,3034.5,29.54942117]
[1765016341669,0.002,3034.6,3034.5,28.97718017]